bitfinex-derivatives/quotes_SOLF0:USTF0_20250830
["timestamp","ask_amount","ask_price","bid_price","bid_amount"]
[1756580640699,10.80475482,201.28,201.17,7.61]
[1756580642303,10.80475482,201.28,201.18,7.61]
[1756580645113,7.69,201.28,201.18,7.61]
[1756580645312,7.69,201.28,201.21,7.61]
[1756580645611,10.80475482,201.31,201.21,7.61]
[1756580647517,7.69,201.31,201.23,3.11475482]
[1756580647716,7.69,201.31,201.24,7.31]
[1756580648816,7.89,201.3,201.2,11.46385796]
[1756580649214,3.11475482,201.31,201.2,11.46385796]
[1756580649412,7.89,201.3,201.2,11.46385796]
[1756580649921,7.89,201.27,201.21,7.31]
[1756580650322,7.89,201.27,201.17,3.11475482]
[1756580650323,3.11475482,201.28,201.17,14.57861278]
[1756580650620,7.89,201.27,201.18,7.31]
[1756580654224,3.11475482,201.25,201.18,7.31]
[1756580655024,7.89,201.27,201.18,7.31]
[1756580658425,7.89,201.27,201.18,11.46385796]
[1756580658923,3.11475482,201.28,201.18,11.46385796]
[1756580659124,7.89,201.27,201.18,11.46385796]
[1756580659926,3.11475482,201.23,201.17,11.46385796]
[1756580660135,11.00475482,201.23,201.17,11.46385796]
[1756580662435,7.89,201.27,201.19,7.31]
[1756580663132,3.11475482,201.25,201.19,7.31]
[1756580663639,7.89,201.27,201.19,7.31]
[1756580663839,7.98,201.33,201.2,4.15385796]
[1756580664041,3.11475482,201.31,201.22,4.15385796]
[1756580664237,7.89,201.3,201.22,4.15385796]
[1756580665339,7.89,201.3,201.23,7.31]
[1756580666047,7.89,201.3,201.23,11.46385796]
[1756580666640,7.89,201.3,201.23,7.31]
[1756580669637,11.00475482,201.33,201.23,7.31]
[1756580670141,11.00475482,201.33,201.24,7.31]
[1756580671744,11.00475482,201.33,201.24,3.11475482]
[1756580671938,11.00475482,201.33,201.25,7.31]
[1756580673346,7.89,201.29,201.21,7.31]
[1756580676445,7.89,201.26,201.17,7.31]
[1756580686158,3.11475482,201.24,201.17,7.31]
[1756580686358,11.11475482,201.24,201.17,7.31]
[1756580689659,11.11475482,201.26,201.17,7.31]
[1756580690061,8.0,201.31,201.19,7.76]
[1756580690260,3.11475482,201.3,201.19,7.76]
[1756580690761,11.11475482,201.31,201.19,7.76]
[1756580697065,11.11475482,201.31,201.21,3.11475482]
[1756580697463,11.11475482,201.31,201.22,7.76]
[1756580709469,8.04,201.34,201.25,7.61]
[1756580713679,8.04,201.34,201.27,3.11475482]
[1756580713874,8.04,201.38,201.31,7.61]
[1756580714072,8.04,201.38,201.3,3.11475482]
[1756580714776,11.15475482,201.38,201.28,7.61]
[1756580716272,11.15475482,201.38,201.25,3.11475482]
[1756580716471,8.04,201.34,201.25,10.72475482]
[1756580716871,3.11475482,201.35,201.25,10.72475482]
[1756580717070,8.04,201.34,201.25,10.72475482]
[1756580717471,3.11475482,201.35,201.25,10.72475482]
[1756580717666,8.04,201.34,201.25,10.72475482]
[1756580718377,3.11475482,201.35,201.25,10.72475482]
[1756580718571,8.04,201.34,201.25,10.72475482]
[1756580718875,3.11475482,201.35,201.25,10.72475482]
[1756580719977,8.04,201.34,201.25,10.72475482]
[1756580720275,3.11475482,201.35,201.25,10.72475482]
[1756580720677,8.04,201.34,201.25,10.72475482]
[1756580721670,8.04,201.34,201.25,7.61]
[1756580721974,8.04,201.31,201.2,7.61]
[1756580723078,8.04,201.31,201.23,7.61]
[1756580724574,8.04,201.35,201.26,7.61]
[1756580724770,11.15475482,201.35,201.24,7.61]
[1756580724976,3.11475482,201.38,201.21,7.61]
[1756580724977,8.04,201.31,201.21,7.61]
[1756580728178,3.11475482,201.29,201.21,7.61]
[1756580728583,8.04,201.28,201.21,7.61]
[1756580728782,8.04,201.28,201.16,3.11475482]
[1756580728978,8.04,201.28,201.17,7.61]
[1756580729380,3.11475482,201.26,201.17,7.61]
[1756580732190,11.15475482,201.26,201.17,7.61]
[1756580732992,8.04,201.26,201.17,7.61]
[1756580736790,8.04,201.24,201.17,7.61]
[1756580737091,8.04,201.24,201.14,7.61]
[1756580737682,3.11475482,201.22,201.14,7.61]
[1756580738092,7.5,201.21,201.14,7.61]
[1756580739185,7.5,201.21,201.11,114.33010467]
[1756580740792,3.11475482,201.22,201.11,114.33010467]
[1756580740992,7.5,201.21,201.11,114.33010467]
[1756580741496,7.5,201.21,201.12,7.58]
[1756580741685,7.5,201.21,201.14,7.58]
[1756580744494,7.5,201.21,201.11,114.33010467]
[1756580744895,3.11475482,201.22,201.11,114.33010467]
[1756580745094,7.5,201.21,201.11,114.33010467]
[1756580745997,3.11475482,201.22,201.11,114.33010467]
[1756580746193,7.5,201.18,201.11,114.33010467]
[1756580746396,7.5,201.18,201.11,7.58]
[1756580757100,3.11475482,201.22,201.11,7.58]
[1756580757302,7.5,201.21,201.11,7.58]
[1756580761113,7.5,201.24,201.17,7.58]
[1756580761612,337.11475482,201.28,201.17,7.58]
[1756580761804,7.5,201.27,201.19,3.11475482]
[1756580762004,7.5,201.27,201.2,7.58]
[1756580776721,7.71,201.36,201.22,3.11475482]
[1756580776922,7.71,201.33,201.23,7.49]
[1756580777723,7.71,201.33,201.25,3.11475482]
[1756580778025,7.71,201.33,201.26,7.49]
[1756580782926,7.71,201.38,201.29,7.49]
[1756580784227,7.71,201.38,201.31,3.11475482]
[1756580784431,7.71,201.38,201.31,10.60475482]
[1756580786831,7.71,201.38,201.31,7.49]
[1756580792933,3.11475482,201.37,201.23,7.49]
[1756580793131,7.71,201.36,201.26,7.49]
[1756580795630,7.71,201.33,201.26,7.49]
[1756580800133,7.78,201.3,201.21,7.4]
[1756580804043,3.11475482,201.28,201.21,7.4]
[1756580804242,7.78,201.27,201.21,7.4]
[1756580811044,7.78,201.24,201.15,7.4]
[1756580813947,3.11475482,201.22,201.15,7.4]
[1756580814153,7.78,201.21,201.15,7.4]
[1756580820953,7.78,201.25,201.16,7.4]
[1756580827462,8.01,201.22,201.16,7.4]
[1756580829266,3.11475482,201.2,201.12,7.95]
[1756580829473,8.01,201.19,201.12,7.95]
[1756580850989,11.12475482,201.19,201.12,7.95]
[1756580857293,1.99341501,201.16,201.12,7.95]
[1756580858495,10.07341501,201.16,201.12,7.95]
[1756580858686,1.99341501,201.16,201.12,7.95]
[1756580858893,8.08,201.15,201.12,7.95]
[1756580859090,8.08,201.15,201.11,7.81]
[1756580859291,1.99341501,201.16,201.1,1.99341501]
[1756580859998,1.99341501,201.16,201.11,7.81]
[1756580860595,1.99341501,201.16,201.1,1.99341501]
[1756580860793,1.99341501,201.16,201.11,7.81]
[1756580860990,1.99341501,201.16,201.1,1.99341501]
[1756580861192,1.99341501,201.21,201.15,7.81]
[1756580861493,10.07341501,201.21,201.17,7.81]
[1756580861992,8.08,201.2,201.17,7.81]
[1756580862389,8.08,201.2,201.14,9.80341501]
[1756580863388,8.08,201.2,201.14,7.81]
[1756580868511,11.19347508,201.2,201.11,7.81]
[1756580869715,8.08,201.19,201.08,7.81]
[1756580869916,3.11347508,201.17,201.08,7.81]
[1756580870110,8.08,201.16,201.08,7.81]
[1756580872412,8.08,201.16,201.09,7.81]
[1756580877720,3.11347508,201.17,201.09,7.81]
[1756580877922,8.08,201.19,201.09,7.81]
[1756580879320,8.08,201.19,201.09,3.11347508]
[1756580879520,8.08,201.19,201.1,5.53484967]
[1756580879720,8.08,201.19,201.12,7.81]
[1756580880823,8.08,201.22,201.13,7.81]
[1756580881226,8.08,201.22,201.15,3.11347508]
[1756580881425,8.08,201.26,201.16,7.81]
[1756580888727,8.08,201.26,201.18,3.11347508]
[1756580888925,8.08,201.26,201.19,7.6]
[1756580893630,7.98,201.26,201.17,7.6]
[1756580894131,7.98,201.29,201.19,3.11347508]
[1756580894329,7.98,201.29,201.2,7.6]
[1756580897734,7.98,201.26,201.2,7.6]
[1756580900135,7.98,201.3,201.2,7.6]
[1756580900340,11.09347508,201.3,201.2,7.6]
[1756580902438,7.98,201.3,201.2,7.6]
[1756580910556,5.54097856,201.39,201.21,3.11347508]
[1756580910755,7.98,201.33,201.22,7.6]
[1756580911952,3.11347508,201.31,201.22,7.6]
[1756580912153,7.98,201.3,201.22,7.6]
[1756580915254,9.97061264,201.3,201.24,1.99061264]
[1756580918164,9.35061264,201.3,201.24,9.99061264]
[1756580920463,1.99061264,201.3,201.24,8.0]
[1756580920664,7.36,201.27,201.24,8.0]
[1756580921565,1.99061264,201.29,201.23,1.99061264]
[1756580922460,1.99061264,201.29,201.18,16.39484967]
[1756580922461,9.35061264,201.31,201.25,1.99061264]
[1756580922662,9.35061264,201.31,201.25,9.99061264]
[1756580924769,7.36,201.28,201.21,8.0]
[1756580924971,1.99061264,201.27,201.21,9.99061264]
[1756580928070,7.36,201.28,201.23,1.99061264]
[1756580928267,6.40577895,201.35,201.26,8.0]
[1756580928268,1.99061264,201.32,201.26,8.0]
[1756580928468,9.35061264,201.32,201.26,8.0]
[1756580929276,7.36,201.32,201.26,8.0]
[1756580937478,3.11004213,201.31,201.21,8.0]
[1756580937680,7.36,201.3,201.21,8.0]
[1756580940682,7.36,201.27,201.21,8.0]
[1756580940881,7.36,201.27,201.15,8.6448918]
[1756580941177,7.36,201.24,201.18,8.0]
[1756580953388,7.5,201.22,201.16,1.99205007]
[1756580953788,7.5,201.22,201.17,7.42]
[1756580954287,7.5,201.22,201.16,1.99205007]
[1756580954486,7.5,201.22,201.17,7.42]
[1756580954690,7.5,201.22,201.16,1.99205007]
[1756580954879,7.5,201.22,201.17,7.42]
[1756580955079,7.5,201.22,201.16,1.99205007]
[1756580955385,9.49205007,201.21,201.15,7.42]
[1756580957890,1.99205007,201.19,201.15,7.42]
[1756580958094,7.5,201.18,201.15,7.42]
[1756580958287,1.99205007,201.19,201.15,7.42]
[1756580958594,7.5,201.18,201.15,7.42]
[1756580959398,1.99205007,201.19,201.15,7.42]
[1756580959595,7.5,201.18,201.15,7.42]
[1756580959894,7.5,201.18,201.13,7.42]
[1756580960396,7.5,201.18,201.12,1.99205007]
[1756580960994,7.5,201.18,201.13,7.42]
[1756580961396,7.5,201.18,201.12,1.99205007]
[1756580961695,7.5,201.18,201.13,7.42]
[1756580961895,7.5,201.18,201.12,1.99205007]
[1756580962295,1.99205007,201.19,201.12,1.99205007]
[1756580962492,7.5,201.18,201.12,9.41205007]
[1756580964292,7.5,201.16,201.12,7.42]
[1756580964892,1.99205007,201.17,201.12,7.42]
[1756580965298,7.5,201.16,201.12,7.42]
[1756580965895,1.99205007,201.17,201.12,7.42]
[1756580966096,7.5,201.16,201.12,7.42]
[1756580967095,7.5,201.14,201.08,7.42]
[1756580967299,1.99205007,201.13,201.07,1.99205007]
[1756580967798,9.49205007,201.15,201.09,1.99205007]
[1756580967999,7.5,201.14,201.1,7.42]
[1756580968194,1.99205007,201.15,201.1,7.42]
[1756580968400,7.5,201.14,201.1,7.42]
[1756580970098,1.99205007,201.15,201.1,7.42]
[1756580970602,7.5,201.14,201.07,9.41205007]
[1756580970796,1.99205007,201.13,201.07,9.41205007]
[1756580971905,1.99205007,201.13,201.08,7.42]
[1756580972401,1.99205007,201.13,201.07,1.99205007]
[1756580972700,1.99205007,201.13,201.08,7.42]
[1756580972901,1.99205007,201.13,201.07,1.99205007]
[1756580973101,1.99205007,201.13,201.08,7.42]
[1756580973493,1.99205007,201.13,201.07,1.99205007]
[1756580973698,1.99205007,201.13,201.08,7.42]
[1756580973899,1.99205007,201.13,201.07,1.99205007]
[1756580974098,1.99205007,201.13,201.08,7.42]
[1756580974495,1.99205007,201.11,201.05,1.99205007]
[1756580974693,1.99205007,201.11,201.02,5.53484967]
[1756580974694,7.5,201.12,201.07,1.99205007]
[1756580974902,7.5,201.12,201.08,7.42]
[1756580975300,7.5,201.12,201.07,1.99205007]
[1756580975502,9.49205007,201.11,201.05,9.41205007]
[1756580976399,1.99205007,201.09,201.05,7.42]
[1756580976601,7.5,201.08,201.05,7.42]
[1756580977199,1.99205007,201.09,201.0,126.55484967]
[1756580977398,7.78,201.09,201.01,8.07]
[1756580978999,3.11680563,201.08,201.01,8.07]
[1756580979202,7.78,201.07,201.01,8.07]
[1756580996018,7.78,201.1,201.01,8.07]
[1756580999420,9.77441136,201.1,201.04,10.06441136]
[1756581000612,7.78,201.1,201.04,10.06441136]
[1756581000820,1.99441136,201.12,201.06,1.99441136]
[1756581001224,7.78,201.13,201.07,8.07]
[1756581001426,7.78,201.13,201.08,1.99441136]
[1756581001724,1.99441136,201.14,201.09,8.07]
[1756581001916,7.78,201.13,201.09,8.07]
[1756581002116,7.78,201.13,201.08,1.99441136]
[1756581002322,1.99441136,201.14,201.08,1.99441136]
[1756581002923,7.78,201.11,201.01,8.07]
[1756581003124,7.78,201.09,201.06,8.07]
[1756581004515,1.99441136,201.12,201.05,1.99441136]
[1756581004720,9.77441136,201.12,201.06,8.07]
[1756581005327,7.78,201.11,201.08,8.07]
[1756581006324,7.78,201.13,201.08,8.07]
[1756581006526,1.99441136,201.14,201.08,8.07]
[1756581006724,7.78,201.13,201.08,8.07]
[1756581006922,1.99441136,201.12,201.07,1.99441136]
[1756581007124,7.78,201.11,201.07,10.06441136]
[1756581007316,7.73,201.11,201.07,10.06441136]
[1756581007520,19.38,201.17,201.07,10.06441136]
[1756581007721,1.99441136,201.12,201.07,10.06441136]
[1756581008022,7.73,201.16,201.07,10.06441136]
[1756581008023,1.99441136,201.13,201.07,10.06441136]
[1756581008520,1.99441136,201.13,201.07,1.99441136]
[1756581008716,7.73,201.12,201.07,1.99441136]
[1756581008928,1.99441136,201.13,201.07,1.99441136]
[1756581009127,7.73,201.12,201.07,1.99441136]
[1756581009425,1.99441136,201.11,201.06,7.31]
[1756581009625,7.73,201.1,201.06,7.31]
[1756581010418,7.73,201.1,201.05,1.99441136]
[1756581010628,1.99441136,201.11,201.06,7.31]
[1756581010924,7.73,201.1,201.06,7.31]
[1756581011119,7.73,201.1,201.05,1.99441136]
[1756581011325,7.73,201.1,201.06,7.31]
[1756581011620,1.99441136,201.09,201.04,7.31]
[1756581011819,1.99441136,201.09,201.03,1.99441136]
[1756581012013,1.99441136,201.09,201.04,7.31]
[1756581012427,9.72441136,201.09,201.03,9.30441136]
[1756581019930,7.73,201.06,201.03,7.31]
[1756581020722,7.73,201.06,201.01,1.99441136]
[1756581020932,7.73,201.06,201.02,7.31]
[1756581021724,7.73,201.06,201.01,1.99441136]
[1756581021923,7.73,201.06,201.02,7.31]
[1756581022330,7.73,201.06,201.01,1.99441136]
[1756581022520,7.73,201.06,201.02,7.31]
[1756581022725,7.73,201.06,201.01,1.99441136]
[1756581023931,7.73,201.06,201.02,7.31]
[1756581025123,7.73,201.06,201.01,1.99441136]
[1756581025635,9.72441136,201.09,201.03,9.30441136]
[1756581027331,9.72441136,201.09,201.03,7.31]
[1756581031035,7.73,201.06,201.02,7.31]
[1756581031437,7.73,201.06,201.01,1.99441136]
[1756581031830,7.73,201.06,201.02,7.31]
[1756581032030,7.73,201.06,201.01,1.99441136]
[1756581032232,7.73,201.06,201.02,7.31]
[1756581032434,7.73,201.06,201.01,1.99441136]
[1756581032836,7.73,201.06,201.02,7.31]
[1756581033235,7.73,201.06,201.01,1.99441136]
[1756581033434,7.73,201.06,201.02,7.31]
[1756581033630,7.73,201.06,201.01,1.99441136]
[1756581034139,7.73,201.06,201.02,7.31]
[1756581034439,7.73,201.06,201.01,1.99441136]
[1756581034629,7.73,201.06,201.02,7.31]
[1756581035234,7.73,201.06,201.01,1.99441136]
[1756581035537,7.73,201.06,201.02,7.31]
[1756581035738,7.73,201.06,201.01,1.99441136]
[1756581035940,7.73,201.06,201.02,7.31]
[1756581036238,9.72441136,201.07,201.01,9.30441136]
[1756581037337,7.73,201.07,201.01,7.31]
[1756581037531,7.94,201.02,200.99,13.52484967]
[1756581038842,1.99441136,201.03,200.97,5.53484967]
[1756581039532,9.93441136,201.03,200.97,13.52484967]
[1756581043040,7.94,201.02,200.97,7.99]
[1756581043444,1.99441136,201.03,200.97,7.99]
[1756581043844,7.94,201.02,200.97,7.99]
[1756581044343,7.94,201.0,200.96,9.98441136]
[1756581044542,1.99441136,201.01,200.96,9.98441136]
[1756581044745,7.94,201.0,200.96,9.98441136]
[1756581044945,1.99441136,201.01,200.96,9.98441136]
[1756581045450,7.94,201.0,200.96,1.99441136]
[1756581045849,7.94,201.0,200.97,7.99]
[1756581046045,1.99441136,201.01,200.93,126.61484967]
[1756581046350,1.99441136,200.99,200.94,7.99]
[1756581046553,1.99441136,200.99,200.93,128.60926103]
[1756581046751,7.94,201.0,200.94,7.99]
[1756581046952,9.93441136,200.99,200.93,134.60484967]
[1756581047150,9.93441136,200.99,200.93,129.07]
[1756581047357,7.94,200.98,200.92,5.53484967]
[1756581047550,7.94,201.05,200.93,7.99]
[1756581047750,1.99441136,201.02,200.96,1.99441136]
[1756581047950,7.94,201.03,200.97,7.99]
[1756581048251,7.94,201.04,200.98,9.98441136]
[1756581048745,9.93441136,201.07,201.01,7.99]
[1756581051555,7.94,201.07,200.98,7.99]
[1756581069372,3.11766223,201.05,200.98,7.99]
[1756581069766,8.06,201.07,200.98,7.99]
[1756581073272,1.99633615,201.0,200.94,9.35633615]
[1756581073481,10.05633615,201.0,200.94,9.35633615]
[1756581073867,10.05633615,201.0,200.95,7.36]
[1756581074068,10.05633615,201.0,200.94,1.99633615]
[1756581074473,10.05633615,201.0,200.95,7.36]
[1756581074675,10.05633615,201.0,200.94,1.99633615]
[1756581075174,10.05633615,201.0,200.95,7.36]
[1756581075569,10.05633615,201.0,200.94,1.99633615]
[1756581075971,1.99633615,201.05,200.99,7.36]
[1756581076176,8.06,201.09,201.01,9.35633615]
[1756581076177,1.99633615,201.07,201.01,9.35633615]
[1756581076376,10.05633615,201.07,201.01,9.35633615]
[1756581079278,8.06,201.07,201.01,7.36]
[1756581081084,8.06,201.1,201.02,7.36]
[1756581082077,11.17704843,201.13,201.04,3.11704843]
[1756581082279,11.17704843,201.13,201.05,7.36]
[1756581085489,8.06,201.13,201.05,7.36]
[1756581088586,8.06,201.1,201.01,7.36]
[1756581089382,8.06,201.15,201.03,3.11704843]
[1756581089583,11.17704843,201.15,201.04,7.36]
[1756581090685,8.06,201.15,201.04,7.36]
[1756581090885,8.06,201.15,201.06,3.11704843]
[1756581090886,11.17704843,201.15,201.06,3.11704843]
[1756581091086,11.17704843,201.15,201.07,7.36]
[1756581091991,8.06,201.15,201.07,7.36]
[1756581093388,8.06,201.13,201.07,7.36]
[1756581093588,11.17704843,201.11,201.03,7.36]
[1756581099196,7.56,201.18,201.03,7.36]
[1756581099396,7.56,201.14,201.06,7.78]
[1756581100900,3.11704843,201.18,201.08,3.11704843]
[1756581100901,7.56,201.18,201.08,3.11704843]
[1756581101100,7.56,201.18,201.09,7.78]
[1756581102499,10.67704843,201.21,201.09,7.78]
[1756581102700,10.67704843,201.21,201.12,7.78]
[1756581105102,7.56,201.21,201.12,7.78]
[1756581105402,3.11704843,201.24,201.15,7.78]
[1756581105403,10.67704843,201.24,201.15,7.78]
[1756581107905,0.03212777,201.22,201.15,7.78]
[1756581108108,0.03212777,201.22,201.17,0.03658237]
[1756581108311,7.56,201.21,201.17,7.81658237]
[1756581111406,0.03212777,201.22,201.17,7.81658237]
[1756581111603,0.03212777,201.22,201.17,0.03658237]
[1756581112208,7.56,201.21,201.17,0.03658237]
[1756581112610,7.56,201.21,201.17,7.81658237]
[1756581112811,7.56,201.21,201.18,7.78]
[1756581115413,7.56,201.21,201.17,0.03658237]
[1756581115812,0.03212777,201.22,201.17,7.81658237]
[1756581116012,7.56,201.21,201.17,7.81658237]
[1756581116814,0.03212777,201.22,201.17,7.81658237]
[1756581117514,7.56,201.21,201.17,7.81658237]
[1756581117912,0.03212777,201.22,201.17,7.81658237]
[1756581118416,7.56,201.21,201.17,0.03658237]
[1756581118616,0.03212777,201.22,201.17,0.03658237]
[1756581119006,7.56,201.21,201.17,0.03658237]
[1756581119515,0.03212777,201.22,201.17,0.03658237]
[1756581119715,7.56,201.21,201.17,0.03658237]
[1756581120108,10.67704843,201.21,201.17,0.03658237]
[1756581120715,3.11704843,201.21,201.17,0.03658237]
[1756581121817,7.56,201.2,201.17,0.03658237]
[1756581122211,3.11704843,201.21,201.17,0.03658237]
[1756581122412,7.56,201.2,201.17,0.03658237]
[1756581122917,3.11704843,201.21,201.17,0.03658237]
[1756581123112,7.56,201.2,201.17,0.03658237]
[1756581123613,3.11704843,201.21,201.17,0.03658237]
[1756581123812,7.56,201.2,201.17,0.03658237]
[1756581124019,7.59212777,201.22,201.18,7.78]
[1756581125215,7.59212777,201.22,201.17,0.03658237]
[1756581125416,0.03212777,201.22,201.18,7.78]
[1756581125813,0.03212777,201.22,201.17,0.03658237]
[1756581126017,0.03212777,201.22,201.18,7.78]
[1756581126416,0.03212777,201.22,201.17,0.03658237]
[1756581126810,0.03212777,201.22,201.18,7.78]
[1756581127008,7.56,201.21,201.18,7.78]
[1756581127816,7.56,201.21,201.18,7.75]
[1756581128011,0.03212777,201.22,201.17,0.03658237]
[1756581128414,0.03212777,201.22,201.18,7.75]
[1756581128814,0.03212777,201.22,201.19,7.75]
[1756581130923,0.03212777,201.22,201.18,3.11704843]
[1756581131222,0.03212777,201.22,201.19,7.75]
[1756581131522,0.03212777,201.22,201.18,3.11704843]
[1756581132019,7.44212777,201.22,201.19,7.75]
[1756581132921,0.03212777,201.22,201.18,7.75]
[1756581133623,0.03212777,201.22,201.17,0.03658237]
[1756581134321,0.03212777,201.22,201.18,7.75]
[1756581134722,0.03212777,201.22,201.17,0.03658237]
[1756581134923,0.03212777,201.22,201.18,7.75]
[1756581135123,0.03212777,201.22,201.17,0.03658237]
[1756581136023,0.03212777,201.22,201.18,7.75]
[1756581136324,0.03212777,201.22,201.17,0.03658237]
[1756581136519,0.03212777,201.22,201.18,7.75]
[1756581136720,0.03212777,201.22,201.17,0.03658237]
[1756581137323,0.03212777,201.22,201.18,7.75]
[1756581137522,0.03212777,201.22,201.17,0.03658237]
[1756581137824,0.03212777,201.22,201.18,7.75]
[1756581138026,0.03212777,201.22,201.17,0.03658237]
[1756581138428,0.03212777,201.22,201.18,7.75]
[1756581138829,0.03212777,201.22,201.17,0.03658237]
[1756581139022,0.03212777,201.22,201.18,7.75]
[1756581140123,0.03212777,201.22,201.19,7.75]
[1756581141430,0.03212777,201.22,201.21,10.86704843]
[1756581147730,7.44212777,201.22,201.19,7.75]
[1756581155532,7.44212777,201.22,201.17,0.03658237]
[1756581156132,7.44212777,201.22,201.18,7.75]
[1756581157433,7.44212777,201.22,201.18,7.95]
[1756581157633,7.44212777,201.22,201.17,0.03658237]
[1756581158432,7.44212777,201.22,201.18,7.95]
[1756581159034,7.44212777,201.22,201.17,0.03658237]
[1756581159436,7.44212777,201.22,201.18,7.95]
[1756581159835,7.44212777,201.22,201.17,0.03658237]
[1756581160036,7.44212777,201.22,201.18,7.95]
[1756581160236,7.44212777,201.22,201.17,0.03658237]
[1756581160437,7.44212777,201.22,201.18,7.95]
[1756581160838,7.44212777,201.22,201.17,0.03658237]
[1756581161538,7.44212777,201.22,201.18,7.95]
[1756581161741,7.44212777,201.22,201.17,0.03658237]
[1756581162037,7.44212777,201.22,201.18,7.95]
[1756581162429,0.03212777,201.22,201.17,0.03658237]
[1756581162635,7.3,201.21,201.17,0.03658237]
[1756581163035,0.03212777,201.22,201.17,0.03658237]
[1756581163338,7.3,201.21,201.17,0.03658237]
[1756581163539,0.03212777,201.22,201.17,0.03658237]
[1756581164141,7.3,201.21,201.17,0.03658237]
[1756581164345,0.03212777,201.22,201.17,0.03658237]
[1756581164737,7.3,201.21,201.17,0.03658237]
[1756581164938,0.03212777,201.22,201.17,0.03658237]
[1756581165443,7.3,201.21,201.17,0.03658237]
[1756581165642,0.03212777,201.22,201.17,0.03658237]
[1756581166034,7.3,201.21,201.17,0.03658237]
[1756581166234,0.03212777,201.22,201.17,0.03658237]
[1756581166436,7.3,201.21,201.17,0.03658237]
[1756581166638,0.03212777,201.22,201.17,0.03658237]
[1756581167046,7.3,201.21,201.17,0.03658237]
[1756581167338,0.03212777,201.22,201.17,0.03658237]
[1756581168049,7.3,201.21,201.17,0.03658237]
[1756581168343,0.03212777,201.22,201.17,0.03658237]
[1756581168540,7.3,201.21,201.17,0.03658237]
[1756581168749,0.03212777,201.22,201.17,0.03658237]
[1756581169139,7.3,201.21,201.17,0.03658237]
[1756581169345,0.03212777,201.22,201.17,0.03658237]
[1756581169539,7.3,201.21,201.17,0.03658237]
[1756581169745,0.03212777,201.22,201.17,0.03658237]
[1756581170145,7.3,201.21,201.17,0.03658237]
[1756581170745,0.03212777,201.22,201.17,0.03658237]
[1756581170946,7.3,201.21,201.17,0.03658237]
[1756581171247,0.03212777,201.22,201.17,0.03658237]
[1756581172049,0.03212777,201.22,201.19,7.95]
[1756581173149,0.03212777,201.22,201.17,3.1536308]
[1756581173543,0.03212777,201.22,201.18,7.95]
[1756581173745,0.03212777,201.22,201.2,3.11704843]
[1756581173954,0.03212777,201.22,201.21,7.95]
[1756581182057,7.33212777,201.22,201.18,5.53484967]
[1756581182244,7.33212777,201.22,201.17,0.03658237]
[1756581182551,0.03212777,201.22,201.17,0.03658237]
[1756581182951,0.03212777,201.22,201.18,7.95]
[1756581183154,0.03212777,201.22,201.17,0.03658237]
[1756581183354,0.03212777,201.22,201.18,7.95]
[1756581183546,7.33212777,201.22,201.18,7.95]
[1756581183750,7.33212777,201.22,201.17,0.03658237]
[1756581183951,7.33212777,201.22,201.18,7.95]
[1756581184353,7.33212777,201.22,201.17,0.03658237]
[1756581184354,0.03212777,201.22,201.17,0.03658237]
[1756581184553,7.3,201.21,201.17,0.03658237]
[1756581184857,3.11704843,201.2,201.17,0.03658237]
[1756581185055,7.3,201.19,201.17,0.03658237]
[1756581186152,3.11704843,201.2,201.17,0.03658237]
[1756581186356,7.3,201.19,201.17,0.03658237]